[Event "Titled Tuesday Blitz February 21 Late 2023"]
[White "Kramnik, Vladimir"]
[Black "Bryakin, Mikhail"]
[WhiteFideId "4101588"]
[BlackFideId "4165314"]
[WhiteElo "2753"]
[BlackElo "2455"]
[Result "1-0"]
[Round "07"]
[TimeControl "180+2"]
[Date "2023.02.21"]
[WhiteClock "0:00:18"]
[BlackClock "0:00:05"]

1. Nf3 {[%clk 0:03:00]}  Nf6 {[%clk 0:02:51]} 2. g3 {[%clk 0:03:00]}  b6 {[%clk 0:02:48]} 3. d4 {[%clk 0:02:57]}  Bb7 {[%clk 0:02:48]} 4. c4 {[%clk 0:02:57]}  e6 {[%clk 0:02:35]} 5. Bg2 {[%clk 0:02:56]}  Be7 {[%clk 0:02:33]} 6. O-O {[%clk 0:02:56]}  O-O {[%clk 0:02:33]} 7. h4 {[%clk 0:02:53]}  c5 {[%clk 0:02:09]} 8. d5 {[%clk 0:02:51]}  exd5 {[%clk 0:02:09]} 9. Nh2 {[%clk 0:02:50]}  Bd6 {[%clk 0:01:43]} 10. Nc3 {[%clk 0:02:41]}  Nc6 {[%clk 0:01:18]} 11. Nxd5 {[%clk 0:02:28]}  Nxd5 {[%clk 0:01:17]} 12. Bxd5 {[%clk 0:02:28]}  Qc7 {[%clk 0:01:12]} 13. Nf3 {[%clk 0:02:21]}  Rad8 {[%clk 0:01:06]} 14. Kg2 {[%clk 0:02:14]}  Be7 {[%clk 0:01:03]} 15. Bf4 {[%clk 0:02:12]}  d6 {[%clk 0:01:01]} 16. a3 {[%clk 0:02:09]}  Bc8 {[%clk 0:00:58]} 17. Qc2 {[%clk 0:02:02]}  Ne5 {[%clk 0:00:55]} 18. Rad1 {[%clk 0:01:57]}  h6 {[%clk 0:00:55]} 19. Rd2 {[%clk 0:01:51]}  Bg4 {[%clk 0:00:52]} 20. Rfd1 {[%clk 0:01:36]}  Bf6 {[%clk 0:00:52]} 21. Bxe5 {[%clk 0:01:28]}  Bxf3+ {[%clk 0:00:46]} 22. Kxf3 {[%clk 0:01:18]}  dxe5 {[%clk 0:00:41]} 23. e3 {[%clk 0:01:13]}  Kh8 {[%clk 0:00:35]} 24. Qf5 {[%clk 0:01:11]}  Qe7 {[%clk 0:00:22]} 25. h5 {[%clk 0:01:08]}  Qd7 {[%clk 0:00:22]} 26. Qxd7 {[%clk 0:01:03]}  Rxd7 {[%clk 0:00:23]} 27. Be4 {[%clk 0:01:03]}  Rxd2 {[%clk 0:00:22]} 28. Rxd2 {[%clk 0:01:02]}  Rd8 {[%clk 0:00:23]} 29. Bd5 {[%clk 0:01:01]}  Kg8 {[%clk 0:00:22]} 30. Ke4 {[%clk 0:01:00]}  Kf8 {[%clk 0:00:22]} 31. b4 {[%clk 0:00:58]}  Be7 {[%clk 0:00:20]} 32. b5 {[%clk 0:00:56]}  Bf6 {[%clk 0:00:18]} 33. a4 {[%clk 0:00:55]}  Rd7 {[%clk 0:00:18]} 34. a5 {[%clk 0:00:54]}  bxa5 {[%clk 0:00:18]} 35. Ra2 {[%clk 0:00:54]}  Bd8 {[%clk 0:00:18]} 36. Kxe5 {[%clk 0:00:54]}  Bc7+ {[%clk 0:00:19]} 37. Kf5 {[%clk 0:00:52]}  Re7 {[%clk 0:00:19]} 38. Kg4 {[%clk 0:00:45]}  Rd7 {[%clk 0:00:15]} 39. f4 {[%clk 0:00:43]}  Ke7 {[%clk 0:00:15]} 40. e4 {[%clk 0:00:42]}  f6 {[%clk 0:00:15]} 41. Kf5 {[%clk 0:00:41]}  Rd8 {[%clk 0:00:14]} 42. Kg6 {[%clk 0:00:38]}  Kf8 {[%clk 0:00:15]} 43. Ra3 {[%clk 0:00:38]}  Rd6 {[%clk 0:00:15]} 44. Kf5 {[%clk 0:00:36]}  Ke7 {[%clk 0:00:14]} 45. e5 {[%clk 0:00:35]}  fxe5 {[%clk 0:00:15]} 46. fxe5 {[%clk 0:00:33]}  Rd8 {[%clk 0:00:15]} 47. Re3 {[%clk 0:00:31]}  a4 {[%clk 0:00:11]} 48. Kg6 {[%clk 0:00:31]}  Ba5 {[%clk 0:00:08]} 49. Ra3 {[%clk 0:00:28]}  Rf8 {[%clk 0:00:06]} 50. Rxa4 {[%clk 0:00:24]}  Bb6 {[%clk 0:00:07]} 51. Ra3 {[%clk 0:00:24]}  Rf2 {[%clk 0:00:04]} 52. Kxg7 {[%clk 0:00:24]}  Re2 {[%clk 0:00:04]} 53. Kxh6 {[%clk 0:00:23]}  Rxe5 {[%clk 0:00:04]} 54. g4 {[%clk 0:00:22]}  Kf8 {[%clk 0:00:03]} 55. g5 {[%clk 0:00:22]}  Bd8 {[%clk 0:00:04]} 56. Rf3+ {[%clk 0:00:21]}  Ke8 {[%clk 0:00:04]} 57. g6 {[%clk 0:00:20]}  Bg5+ {[%clk 0:00:05]} 58. Kg7 {[%clk 0:00:19]}  Re7+ {[%clk 0:00:05]} 59. Rf7 {[%clk 0:00:18]} 1-0


[Site "https://www.chess.com"]

[Event "Titled Tuesday Blitz February 21 Late 2023"]
[White "Manukyan, Sargis V."]
[Black "Melkumyan, Hrant"]
[WhiteFideId "13303465"]
[BlackFideId "13302485"]
[WhiteElo "2253"]
[BlackElo "2645"]
[Result "0-1"]
[Round "07"]
[TimeControl "180+2"]
[Date "2023.02.21"]
[WhiteClock "0:01:09"]
[BlackClock "0:00:28"]

1. Nf3 {[%clk 0:03:00]}  c5 {[%clk 0:02:59]} 2. g3 {[%clk 0:03:01]}  Nc6 {[%clk 0:02:59]} 3. d4 {[%clk 0:03:01]}  cxd4 {[%clk 0:02:57]} 4. Nxd4 {[%clk 0:03:02]}  g6 {[%clk 0:02:55]} 5. Bg2 {[%clk 0:03:02]}  Bg7 {[%clk 0:02:50]} 6. Nb3 {[%clk 0:03:03]}  Nf6 {[%clk 0:02:46]} 7. O-O {[%clk 0:03:03]}  O-O {[%clk 0:02:45]} 8. c4 {[%clk 0:03:02]}  d6 {[%clk 0:02:46]} 9. Nc3 {[%clk 0:03:02]}  Be6 {[%clk 0:02:38]} 10. Nd5 {[%clk 0:03:01]}  Nd7 {[%clk 0:02:36]} 11. f4 {[%clk 0:02:43]}  a5 {[%clk 0:02:34]} 12. Be3 {[%clk 0:02:33]}  Bxb2 {[%clk 0:02:28]} 13. Rb1 {[%clk 0:02:33]}  Bg7 {[%clk 0:02:28]} 14. Nd4 {[%clk 0:02:28]}  Nxd4 {[%clk 0:02:21]} 15. Bxd4 {[%clk 0:02:28]}  Bxd4+ {[%clk 0:02:12]} 16. Qxd4 {[%clk 0:02:29]}  Nc5 {[%clk 0:02:13]} 17. e4 {[%clk 0:02:21]}  Bxd5 {[%clk 0:02:04]} 18. cxd5 {[%clk 0:02:19]}  Rb8 {[%clk 0:01:56]} 19. e5 {[%clk 0:02:09]}  b5 {[%clk 0:01:55]} 20. f5 {[%clk 0:02:04]}  Qb6 {[%clk 0:01:52]} 21. Kh1 {[%clk 0:02:04]}  Nd7 {[%clk 0:01:43]} 22. Qh4 {[%clk 0:02:04]}  Nxe5 {[%clk 0:01:41]} 23. Qxe7 {[%clk 0:02:04]}  Qd8 {[%clk 0:01:33]} 24. Qa7 {[%clk 0:02:03]}  b4 {[%clk 0:01:26]} 25. Qe3 {[%clk 0:01:52]}  f6 {[%clk 0:01:03]} 26. fxg6 {[%clk 0:01:51]}  hxg6 {[%clk 0:01:04]} 27. Qh6 {[%clk 0:01:43]}  Qe7 {[%clk 0:01:01]} 28. Rbc1 {[%clk 0:01:38]}  Qg7 {[%clk 0:00:58]} 29. Qd2 {[%clk 0:01:32]}  f5 {[%clk 0:00:58]} 30. Rf4 {[%clk 0:01:28]}  Rfc8 {[%clk 0:00:57]} 31. Re1 {[%clk 0:01:26]}  Rc3 {[%clk 0:00:51]} 32. Rh4 {[%clk 0:01:18]}  Rbc8 {[%clk 0:00:51]} 33. Qg5 {[%clk 0:01:13]}  Rc2 {[%clk 0:00:34]} 34. Rh6 {[%clk 0:01:09]}  Nf7 {[%clk 0:00:28]} 0-1


[Site "https://www.chess.com"]

[Event "Titled Tuesday Blitz February 21 Late 2023"]
[White "Hnydiuk, Aleksander"]
[Black "Nihal Sarin"]
[WhiteFideId "1109057"]
[BlackFideId "25092340"]
[WhiteElo "2363"]
[BlackElo "2673"]
[Result "0-1"]
[Round "07"]
[TimeControl "180+2"]
[Date "2023.02.21"]
[WhiteClock "0:00:05"]
[BlackClock "0:01:53"]

1. Nf3 {[%clk 0:03:00]}  d5 {[%clk 0:02:56]} 2. d4 {[%clk 0:03:00]}  Nf6 {[%clk 0:02:57]} 3. c4 {[%clk 0:03:00]}  e6 {[%clk 0:02:57]} 4. g3 {[%clk 0:02:59]}  Be7 {[%clk 0:02:53]} 5. Bg2 {[%clk 0:02:59]}  O-O {[%clk 0:02:54]} 6. O-O {[%clk 0:02:58]}  dxc4 {[%clk 0:02:54]} 7. Qc2 {[%clk 0:02:58]}  b5 {[%clk 0:02:55]} 8. a4 {[%clk 0:02:57]}  b4 {[%clk 0:02:56]} 9. Nfd2 {[%clk 0:02:57]}  Nd5 {[%clk 0:02:55]} 10. Nxc4 {[%clk 0:02:56]}  c5 {[%clk 0:02:55]} 11. dxc5 {[%clk 0:02:51]}  Ba6 {[%clk 0:02:55]} 12. Nbd2 {[%clk 0:02:45]}  Bxc5 {[%clk 0:02:48]} 13. Ne4 {[%clk 0:02:36]}  Be7 {[%clk 0:02:45]} 14. Ne5 {[%clk 0:02:23]}  Qb6 {[%clk 0:02:39]} 15. a5 {[%clk 0:02:08]}  Qb5 {[%clk 0:02:36]} 16. Bf3 {[%clk 0:01:34]}  Rc8 {[%clk 0:02:31]} 17. Qb3 {[%clk 0:01:23]}  f6 {[%clk 0:02:25]} 18. Nd3 {[%clk 0:01:21]}  Nc6 {[%clk 0:02:26]} 19. Qa4 {[%clk 0:00:54]}  Nd4 {[%clk 0:02:20]} 20. Qxb5 {[%clk 0:00:53]}  Bxb5 {[%clk 0:02:21]} 21. Rd1 {[%clk 0:00:50]}  Rc2 {[%clk 0:02:16]} 22. Ne1 {[%clk 0:00:31]}  Nxe2+ {[%clk 0:02:11]} 23. Kg2 {[%clk 0:00:26]}  Rcc8 {[%clk 0:01:58]} 24. Be3 {[%clk 0:00:11]}  f5 {[%clk 0:01:57]} 25. Bxe2 {[%clk 0:00:04]}  Bxe2 {[%clk 0:01:57]} 26. Rd2 {[%clk 0:00:05]}  Bc4 {[%clk 0:01:53]} 0-1


[Site "https://www.chess.com"]

[Event "Titled Tuesday Blitz February 21 Late 2023"]
[White "Rasulov, Vugar"]
[Black "Fus, Jakub"]
[WhiteFideId "13402390"]
[BlackFideId "1193023"]
[WhiteElo "2523"]
[BlackElo "2417"]
[Result "1-0"]
[Round "07"]
[TimeControl "180+2"]
[Date "2023.02.21"]
[WhiteClock "0:00:37"]
[BlackClock "0:00:42"]

1. g3 {[%clk 0:03:00]}  d5 {[%clk 0:02:51]} 2. Bg2 {[%clk 0:03:01]}  c6 {[%clk 0:02:51]} 3. Nf3 {[%clk 0:02:59]}  Bg4 {[%clk 0:02:50]} 4. O-O {[%clk 0:02:56]}  Nd7 {[%clk 0:02:50]} 5. d4 {[%clk 0:02:52]}  e6 {[%clk 0:02:49]} 6. h3 {[%clk 0:02:51]}  Bh5 {[%clk 0:02:49]} 7. c4 {[%clk 0:02:50]}  Bd6 {[%clk 0:02:45]} 8. Nc3 {[%clk 0:02:46]}  Ngf6 {[%clk 0:02:44]} 9. Qb3 {[%clk 0:02:44]}  Rb8 {[%clk 0:02:44]} 10. Bf4 {[%clk 0:02:36]}  Bxf4 {[%clk 0:02:34]} 11. gxf4 {[%clk 0:02:37]}  Bxf3 {[%clk 0:02:34]} 12. Bxf3 {[%clk 0:02:36]}  h6 {[%clk 0:02:22]} 13. Bg2 {[%clk 0:02:30]}  g5 {[%clk 0:02:05]} 14. cxd5 {[%clk 0:02:28]}  exd5 {[%clk 0:02:02]} 15. f5 {[%clk 0:02:24]}  Kf8 {[%clk 0:02:02]} 16. Qa3+ {[%clk 0:02:19]}  Kg7 {[%clk 0:02:02]} 17. Qxa7 {[%clk 0:02:18]}  h5 {[%clk 0:01:58]} 18. Qa3 {[%clk 0:02:17]}  Qc7 {[%clk 0:01:54]} 19. Rac1 {[%clk 0:02:10]}  Qf4 {[%clk 0:01:52]} 20. e3 {[%clk 0:02:04]}  Qxf5 {[%clk 0:01:51]} 21. Qd6 {[%clk 0:02:04]}  g4 {[%clk 0:01:50]} 22. h4 {[%clk 0:02:01]}  Rhe8 {[%clk 0:01:41]} 23. Rfe1 {[%clk 0:02:01]}  Nf8 {[%clk 0:01:39]} 24. e4 {[%clk 0:01:41]}  dxe4 {[%clk 0:01:39]} 25. Nxe4 {[%clk 0:01:37]}  Ng6 {[%clk 0:01:24]} 26. Ng3 {[%clk 0:01:30]}  Qf4 {[%clk 0:01:21]} 27. Qxf6+ {[%clk 0:01:26]}  Kxf6 {[%clk 0:01:19]} 28. Nxh5+ {[%clk 0:01:26]}  Kf5 {[%clk 0:01:20]} 29. Rc5+ {[%clk 0:01:21]}  Re5 {[%clk 0:01:15]} 30. Rexe5+ {[%clk 0:01:07]}  Qxe5 {[%clk 0:01:13]} 31. dxe5 {[%clk 0:01:06]}  Nxh4 {[%clk 0:01:09]} 32. Ng3+ {[%clk 0:00:56]}  Ke6 {[%clk 0:01:08]} 33. Ne4 {[%clk 0:00:54]}  Ra8 {[%clk 0:01:08]} 34. Ng5+ {[%clk 0:00:53]}  Ke7 {[%clk 0:01:07]} 35. a3 {[%clk 0:00:51]}  Rd8 {[%clk 0:01:04]} 36. Rc4 {[%clk 0:00:48]}  Ng6 {[%clk 0:00:59]} 37. Rxg4 {[%clk 0:00:45]}  Nxe5 {[%clk 0:00:59]} 38. Rb4 {[%clk 0:00:45]}  Rg8 {[%clk 0:00:57]} 39. Rxb7+ {[%clk 0:00:44]}  Kf6 {[%clk 0:00:57]} 40. Ne4+ {[%clk 0:00:44]}  Kf5 {[%clk 0:00:56]} 41. Kf1 {[%clk 0:00:43]}  Rd8 {[%clk 0:00:53]} 42. Ke2 {[%clk 0:00:42]}  Rg8 {[%clk 0:00:52]} 43. Ng3+ {[%clk 0:00:39]}  Kf4 {[%clk 0:00:51]} 44. Rb4+ {[%clk 0:00:38]}  Kg5 {[%clk 0:00:51]} 45. a4 {[%clk 0:00:38]}  c5 {[%clk 0:00:49]} 46. Rb5 {[%clk 0:00:38]}  f6 {[%clk 0:00:48]} 47. a5 {[%clk 0:00:38]}  Kf4 {[%clk 0:00:43]} 48. a6 {[%clk 0:00:37]}  Ra8 {[%clk 0:00:42]} 49. Bxa8 {[%clk 0:00:37]} 1-0


[Site "https://www.chess.com"]

[Event "Titled Tuesday Blitz February 21 Late 2023"]
[White "Perske, Thore"]
[Black "Bernadskiy, Vitaliy"]
[WhiteFideId "12902195"]
[BlackFideId "14100371"]
[WhiteElo "2448"]
[BlackElo "2592"]
[Result "0-1"]
[Round "07"]
[TimeControl "180+2"]
[Date "2023.02.21"]
[WhiteClock "0:00:11"]
[BlackClock "0:00:46"]

1. e4 {[%clk 0:02:58]}  c5 {[%clk 0:02:58]} 2. Nf3 {[%clk 0:02:58]}  d6 {[%clk 0:02:59]} 3. g3 {[%clk 0:02:59]}  Nf6 {[%clk 0:02:58]} 4. d3 {[%clk 0:02:59]}  g6 {[%clk 0:02:58]} 5. Bg2 {[%clk 0:03:00]}  Bg7 {[%clk 0:02:59]} 6. O-O {[%clk 0:03:00]}  O-O {[%clk 0:02:59]} 7. Nc3 {[%clk 0:03:01]}  Nc6 {[%clk 0:02:59]} 8. h3 {[%clk 0:03:01]}  Rb8 {[%clk 0:02:59]} 9. a4 {[%clk 0:03:02]}  a6 {[%clk 0:02:59]} 10. Be3 {[%clk 0:03:03]}  b5 {[%clk 0:03:00]} 11. axb5 {[%clk 0:03:04]}  axb5 {[%clk 0:03:00]} 12. Qd2 {[%clk 0:03:04]}  b4 {[%clk 0:03:00]} 13. Nd1 {[%clk 0:03:05]}  e5 {[%clk 0:02:57]} 14. Bh6 {[%clk 0:03:05]}  c4 {[%clk 0:02:43]} 15. Bxg7 {[%clk 0:03:03]}  Kxg7 {[%clk 0:02:44]} 16. Ne3 {[%clk 0:03:01]}  cxd3 {[%clk 0:02:42]} 17. Qxd3 {[%clk 0:02:51]}  Be6 {[%clk 0:02:41]} 18. Ng5 {[%clk 0:02:40]}  Qd7 {[%clk 0:02:30]} 19. Rfd1 {[%clk 0:02:27]}  Nd4 {[%clk 0:02:19]} 20. Nxe6+ {[%clk 0:02:24]}  Qxe6 {[%clk 0:02:14]} 21. Ra6 {[%clk 0:01:52]}  Rfc8 {[%clk 0:02:02]} 22. Qd2 {[%clk 0:01:45]}  Nd7 {[%clk 0:01:48]} 23. c3 {[%clk 0:01:37]}  bxc3 {[%clk 0:01:47]} 24. bxc3 {[%clk 0:01:38]}  Rxc3 {[%clk 0:01:47]} 25. Kh2 {[%clk 0:01:19]}  Rcb3 {[%clk 0:01:42]} 26. Ng4 {[%clk 0:01:14]}  h5 {[%clk 0:01:33]} 27. Qh6+ {[%clk 0:01:08]}  Kg8 {[%clk 0:01:34]} 28. Ne3 {[%clk 0:00:59]}  Nf6 {[%clk 0:01:20]} 29. Qg5 {[%clk 0:00:34]}  Rb2 {[%clk 0:01:16]} 30. Rf1 {[%clk 0:00:33]}  Kg7 {[%clk 0:01:03]} 31. f4 {[%clk 0:00:19]}  Nxe4 {[%clk 0:01:01]} 32. Qh4 {[%clk 0:00:13]}  Nf5 {[%clk 0:00:52]} 33. Nxf5+ {[%clk 0:00:12]}  Qxf5 {[%clk 0:00:53]} 34. fxe5 {[%clk 0:00:11]}  Qxf1 {[%clk 0:00:49]} 35. Qxe4 {[%clk 0:00:12]}  Rxg2+ {[%clk 0:00:45]} 36. Qxg2 {[%clk 0:00:11]}  Qxa6 {[%clk 0:00:46]} 0-1


[Site "https://www.chess.com"]

[Event "Titled Tuesday Blitz February 21 Late 2023"]
[White "Aydincelebi, Kagan"]
[Black "Kobo, Ori"]
[WhiteFideId "6361102"]
[BlackFideId "2812320"]
[WhiteElo "2280"]
[BlackElo "2559"]
[Result "0-1"]
[Round "07"]
[TimeControl "180+2"]
[Date "2023.02.21"]
[WhiteClock "0:00:15"]
[BlackClock "0:00:07"]

1. e4 {[%clk 0:02:57]}  c5 {[%clk 0:03:00]} 2. Nf3 {[%clk 0:02:57]}  g6 {[%clk 0:02:59]} 3. c3 {[%clk 0:02:57]}  d5 {[%clk 0:02:58]} 4. e5 {[%clk 0:02:57]}  a6 {[%clk 0:02:58]} 5. d4 {[%clk 0:02:58]}  Nc6 {[%clk 0:02:58]} 6. Be2 {[%clk 0:02:43]}  Bg7 {[%clk 0:02:56]} 7. O-O {[%clk 0:02:43]}  f6 {[%clk 0:02:57]} 8. exf6 {[%clk 0:02:28]}  Nxf6 {[%clk 0:02:58]} 9. Re1 {[%clk 0:02:26]}  O-O {[%clk 0:02:56]} 10. Be3 {[%clk 0:02:23]}  Ng4 {[%clk 0:02:52]} 11. Bg5 {[%clk 0:02:22]}  cxd4 {[%clk 0:02:47]} 12. cxd4 {[%clk 0:02:20]}  Qb6 {[%clk 0:02:27]} 13. h3 {[%clk 0:02:02]}  Nxf2 {[%clk 0:02:06]} 14. Kxf2 {[%clk 0:02:03]}  Qxb2 {[%clk 0:01:45]} 15. Nd2 {[%clk 0:01:43]}  Bxd4+ {[%clk 0:01:32]} 16. Kg3 {[%clk 0:01:43]}  Qa3 {[%clk 0:00:51]} 17. Kh2 {[%clk 0:01:33]}  Qd6+ {[%clk 0:00:41]} 18. Kh1 {[%clk 0:01:32]}  Bxa1 {[%clk 0:00:40]} 19. Qxa1 {[%clk 0:01:33]}  e5 {[%clk 0:00:40]} 20. Bh6 {[%clk 0:01:31]}  Re8 {[%clk 0:00:36]} 21. Bd3 {[%clk 0:01:20]}  Bf5 {[%clk 0:00:27]} 22. Bf1 {[%clk 0:01:09]}  Rad8 {[%clk 0:00:23]} 23. Qb2 {[%clk 0:01:05]}  Rd7 {[%clk 0:00:22]} 24. Nh4 {[%clk 0:01:04]}  Nd4 {[%clk 0:00:20]} 25. Nb3 {[%clk 0:01:01]}  Nxb3 {[%clk 0:00:15]} 26. Qxb3 {[%clk 0:01:01]}  Be6 {[%clk 0:00:13]} 27. Qb1 {[%clk 0:00:54]}  Bf7 {[%clk 0:00:13]} 28. Be2 {[%clk 0:00:51]}  e4 {[%clk 0:00:14]} 29. Bg4 {[%clk 0:00:47]}  Rde7 {[%clk 0:00:14]} 30. Bg5 {[%clk 0:00:46]}  Rc7 {[%clk 0:00:15]} 31. Rd1 {[%clk 0:00:37]}  d4 {[%clk 0:00:14]} 32. Qb2 {[%clk 0:00:36]}  d3 {[%clk 0:00:12]} 33. Bh6 {[%clk 0:00:37]}  Qe5 {[%clk 0:00:09]} 34. Qxe5 {[%clk 0:00:32]}  Rxe5 {[%clk 0:00:10]} 35. Bf4 {[%clk 0:00:32]}  Rce7 {[%clk 0:00:09]} 36. Bxe5 {[%clk 0:00:33]}  Rxe5 {[%clk 0:00:10]} 37. g3 {[%clk 0:00:20]}  h5 {[%clk 0:00:09]} 38. Bc8 {[%clk 0:00:20]}  Bxa2 {[%clk 0:00:08]} 39. Bxb7 {[%clk 0:00:19]}  Bb3 {[%clk 0:00:07]} 40. Rb1 {[%clk 0:00:17]}  d2 {[%clk 0:00:06]} 41. Nxg6 {[%clk 0:00:16]}  Rb5 {[%clk 0:00:04]} 42. Bc6 {[%clk 0:00:14]}  d1=Q+ {[%clk 0:00:02]} 43. Rxd1 {[%clk 0:00:14]}  Bxd1 {[%clk 0:00:03]} 44. Bxb5 {[%clk 0:00:15]}  axb5 {[%clk 0:00:04]} 45. Kg1 {[%clk 0:00:15]}  b4 {[%clk 0:00:04]} 46. Ne5 {[%clk 0:00:15]}  b3 {[%clk 0:00:04]} 47. Nc4 {[%clk 0:00:15]}  Be2 {[%clk 0:00:05]} 48. Nb2 {[%clk 0:00:15]}  Kg7 {[%clk 0:00:05]} 49. Kf2 {[%clk 0:00:16]}  Bf3 {[%clk 0:00:05]} 50. Ke3 {[%clk 0:00:16]}  Kf6 {[%clk 0:00:06]} 51. Nc4 {[%clk 0:00:16]}  Kf5 {[%clk 0:00:06]} 52. Nd2 {[%clk 0:00:15]}  b2 {[%clk 0:00:06]} 53. Nb1 {[%clk 0:00:16]}  Bg2 {[%clk 0:00:06]} 54. Nc3 {[%clk 0:00:12]}  Bxh3 {[%clk 0:00:05]} 55. Kd2 {[%clk 0:00:12]}  Kg4 {[%clk 0:00:05]} 56. Kc2 {[%clk 0:00:13]}  Bg2 {[%clk 0:00:05]} 57. Kxb2 {[%clk 0:00:13]}  Kxg3 {[%clk 0:00:06]} 58. Kc2 {[%clk 0:00:14]}  h4 {[%clk 0:00:06]} 59. Kd2 {[%clk 0:00:15]}  h3 {[%clk 0:00:07]} 60. Ke3 {[%clk 0:00:15]}  h2 {[%clk 0:00:07]} 0-1


[Site "https://www.chess.com"]